bitfinex/quotes_SOLUSD_20241118
["timestamp","ask_amount","ask_price","bid_price","bid_amount"]
[1731935046210,35.84872443,243.02,242.95,23.776884]
[1731935046420,31.73382443,242.98,242.9,31.73382443]
[1731935046728,31.73382443,242.96,242.86,31.73382443]
[1731935046916,31.73382443,242.96,242.88,31.73382443]
[1731935047495,31.73382443,242.89,242.73,4.39612261]
[1731935047722,31.73382443,242.87,242.7,15.3692]
[1731935047894,31.73382443,242.87,242.78,31.73382443]
[1731935048095,31.73382443,242.89,242.8,31.73382443]
[1731935048301,19.54742492,242.88,242.79,19.54742492]
[1731935048603,19.54742492,242.84,242.74,19.54742492]
[1731935048901,174.4092,242.9,242.74,19.54742492]
[1731935048902,19.54742492,242.82,242.74,19.54742492]
[1731935049108,19.54742492,242.84,242.74,19.54742492]
[1731935049504,6.1768,242.85,242.76,19.54742492]
[1731935049723,6.1768,242.85,242.8,19.54742492]
[1731935050217,19.54742492,242.88,242.64,6.281]
[1731935050418,19.54742492,242.88,242.8,19.54742492]
[1731935051005,19.54742492,242.86,242.78,19.54742492]
[1731935051326,19.54742492,242.86,242.76,19.54742492]
[1731935051512,4.1177,242.85,242.76,19.54742492]
[1731935051713,74.1177,242.85,242.76,19.54742492]
[1731935051915,19.54742492,242.84,242.76,19.54742492]
[1731935052702,89.54742492,242.81,242.72,19.54742492]
[1731935052923,19.54742492,242.81,242.72,19.54742492]
[1731935053303,19.54742492,242.81,242.74,19.54742492]
[1731935053508,19.54742492,242.83,242.74,19.54742492]
[1731935053722,23.66562492,242.83,242.74,19.54742492]
[1731935055624,23.66562492,242.83,242.76,19.54742492]
[1731935055813,19.54742492,242.81,242.74,19.54742492]
[1731935056019,19.54742492,242.81,242.72,19.54742492]
[1731935056317,19.54742492,242.79,242.72,19.54742492]
[1731935057104,19.54742492,242.82,242.74,19.54742492]
[1731935057310,23.66492492,242.86,242.78,19.54742492]
[1731935057927,19.54742492,242.84,242.76,19.54742492]
[1731935058236,19.54742492,242.82,242.74,19.54742492]
[1731935058423,70.0,242.81,242.74,19.54742492]
[1731935058633,70.0,242.81,242.7,19.54742492]
[1731935058634,19.54742492,242.78,242.7,19.54742492]
[1731935058929,19.54742492,242.78,242.68,19.54742492]
[1731935058930,19.54742492,242.76,242.68,19.54742492]
[1731935059530,35.16002492,242.76,242.68,19.54742492]
[1731935060229,4.1194,242.75,242.68,19.54742492]
[1731935060813,19.54742492,242.74,242.66,19.54742492]
[1731935062015,4.1198,242.73,242.66,19.54742492]
[1731935062849,4.1198,242.73,242.55,2.14313621]
[1731935062850,4.1198,242.73,242.64,19.54742492]
[1731935063024,19.54742492,242.72,242.56,0.21916462]
[1731935063213,4.1198,242.73,242.67,19.54742492]
[1731935063827,4.1195,242.75,242.69,19.54742492]
[1731935064251,6.6509,242.77,242.73,19.54742492]
[1731935064546,15.6906,242.83,242.75,19.54742492]
[1731935064757,15.6906,242.83,242.77,19.54742492]
[1731935065132,19.8087,242.83,242.77,19.54742492]
[1731935065346,15.6906,242.83,242.77,19.54742492]
[1731935066046,19.8087,242.83,242.77,19.54742492]
[1731935066439,19.8087,242.83,242.75,19.54742492]
[1731935066639,15.6906,242.83,242.79,19.54742492]
[1731935066942,19.54742492,242.89,242.81,19.54742492]
[1731935067152,22.4742,242.9,242.83,19.54742492]
[1731935067651,22.4742,242.9,242.8,19.54742492]
[1731935067652,19.54742492,242.89,242.8,19.54742492]
[1731935067885,19.54742492,242.85,242.76,19.54742492]
[1731935068156,19.54742492,242.87,242.78,19.54742492]
[1731935068330,19.54742492,242.87,242.8,19.54742492]
[1731935068539,4.1172,242.88,242.82,19.54742492]
[1731935068833,19.54742492,242.87,242.8,19.54742492]
[1731935069056,19.54742492,242.87,242.78,19.54742492]
[1731935069256,4.1172,242.88,242.68,0.25098]
[1731935069257,19.54742492,242.85,242.76,19.54742492]
[1731935070454,4.1179,242.84,242.76,19.54742492]
[1731935070641,19.54742492,242.83,242.76,19.54742492]
[1731935070839,89.54742492,242.79,242.7,19.54742492]
[1731935071061,19.54742492,242.77,242.68,19.54742492]
[1731935071357,19.54742492,242.74,242.66,19.54742492]
[1731935071864,19.54742492,242.74,242.64,19.54742492]
[1731935072070,19.54742492,242.72,242.62,19.54742492]
[1731935072277,19.54742492,242.68,242.46,16.587958]
[1731935072568,19.54742492,242.66,242.57,19.54742492]
[1731935072739,19.54742492,242.66,242.59,19.54742492]
[1731935073425,16.4714,242.67,242.61,2.88082492]
[1731935073630,16.4714,242.67,242.44,2.1440388]
[1731935073631,20.0,242.55,242.44,21.69146372]
[1731935073847,19.54742492,242.53,242.44,21.69146372]
[1731935074051,19.54742492,242.53,242.31,6.8263]
[1731935074052,89.54742492,242.53,242.42,19.54742492]
[1731935074351,70.0,242.5,242.4,19.54742492]
[1731935074749,19.54742492,242.51,242.42,19.54742492]
[1731935075045,30.0,242.52,242.44,19.54742492]
[1731935075255,19.54742492,242.51,242.42,19.54742492]
[1731935075452,19.54742492,242.49,242.4,19.54742492]
[1731935075759,4.1237,242.5,242.4,19.54742492]
[1731935075936,19.54742492,242.51,242.42,19.54742492]
[1731935076960,19.54742492,242.49,242.4,19.54742492]
[1731935077453,70.0,242.51,242.32,0.1]
[1731935077454,19.54742492,242.51,242.42,19.54742492]
[1731935077753,30.0,242.52,242.44,19.54742492]
[1731935077958,23.67072492,242.53,242.44,19.54742492]
[1731935078534,19.54742492,242.51,242.42,19.54742492]
[1731935079130,19.54742492,242.51,242.29,2.14409615]
[1731935079131,19.54742492,242.47,242.38,19.54742492]
[1731935079349,19.54742492,242.45,242.36,19.54742492]
[1731935079565,19.54742492,242.45,242.29,2.14409615]
[1731935079877,4.1246,242.45,242.29,2.14409615]
[1731935080039,19.54742492,242.41,242.32,19.54742492]
[1731935080352,19.54742492,242.41,242.29,2.14409615]
[1731935080555,19.54742492,242.41,242.32,19.54742492]
[1731935081064,19.54742492,242.34,242.26,19.54742492]
[1731935081255,19.54742492,242.32,242.21,2.14347192]
[1731935081566,19.54742492,242.32,242.24,19.54742492]
[1731935081746,4.1263,242.35,242.26,19.54742492]
[1731935081946,19.54742492,242.36,242.18,0.09367462]
[1731935082152,19.54742492,242.3,242.13,6.3713]
[1731935082346,14.4394,242.39,242.16,19.54742492]
[1731935082347,19.54742492,242.27,242.16,19.54742492]
[1731935082741,19.54742492,242.25,242.09,0.1]
[1731935082941,19.54742492,242.27,242.19,19.54742492]
[1731935083158,19.54742492,242.29,242.09,0.1]
[1731935083369,19.54742492,242.27,242.17,19.54742492]
[1731935084256,19.54742492,242.25,242.17,19.54742492]
[1731935084453,19.54742492,242.24,242.15,19.54742492]
[1731935084764,23.67512492,242.26,242.17,19.54742492]
[1731935084951,19.54742492,242.24,242.15,19.54742492]
[1731935085543,19.54742492,242.22,242.05,0.1]
[1731935085749,19.54742492,242.22,242.12,19.54742492]
[1731935086569,19.54742492,242.22,242.15,19.54742492]
[1731935086778,23.67602492,242.22,242.15,19.54742492]
[1731935087250,19.54742492,242.18,242.04,2.14399051]
[1731935087567,6.6121,242.24,242.17,19.54742492]
[1731935087778,19.54742492,242.18,242.04,2.14399051]
[1731935088083,19.54742492,242.16,242.07,19.54742492]
[1731935088575,19.54742492,242.18,242.09,19.54742492]
[1731935088755,4.1293,242.17,242.09,19.54742492]
[1731935088952,4.1293,242.17,242.08,19.54742492]
[1731935089363,19.54742492,242.18,242.04,2.14399051]
[1731935089554,19.54742492,242.1,241.92,0.1]
[1731935089760,19.54742492,242.08,241.99,19.54742492]
[1731935089953,19.54742492,242.06,241.92,2.14268626]
[1731935090152,26.19412492,242.06,241.95,19.54742492]
[1731935090392,31.98119165,241.98,241.8,4.40738222]
[1731935090549,31.98119165,241.98,241.89,31.98119165]
[1731935090755,31.98119165,241.96,241.87,31.98119165]
[1731935091057,31.98119165,241.9,241.82,31.98119165]
[1731935091445,31.98119165,241.9,241.71,0.1]
[1731935091664,31.98119165,241.88,241.79,31.98119165]
[1731935091948,31.98119165,241.87,241.77,31.98119165]
[1731935092150,31.98119165,241.91,241.83,31.98119165]
[1731935092677,31.98119165,241.93,241.72,0.1]
[1731935092858,31.98119165,241.87,241.78,31.98119165]
[1731935093060,31.98119165,241.81,241.67,15.0]
[1731935093264,31.98119165,241.77,241.69,31.98119165]
[1731935093476,70.0,241.78,241.67,15.0]
[1731935093658,31.98119165,241.7,241.67,15.0]
[1731935093858,31.98119165,241.68,241.67,15.0]
[1731935094171,133.9623833,241.68,241.67,15.0]
[1731935094354,101.98119165,241.68,241.67,15.0]
[1731935094750,20.0,241.64,241.56,438.8933]
[1731935094949,63.9623833,241.57,241.56,350.93498189]
[1731935095173,83.9623833,241.57,241.56,277.16431889]
[1731935095408,210.16511357,241.57,241.56,163.1731933]
[1731935095666,210.16511357,241.57,241.56,90.8131031]
[1731935095667,219.43282356,241.57,241.56,90.8131031]
[1731935095844,249.43282356,241.57,241.56,9.54615494]
[1731935096046,70.2,241.48,241.31,0.12102695]
[1731935096247,122.27486627,241.48,241.31,0.12102695]
[1731935096551,158.57225626,241.48,241.47,21.49088585]
[1731935096746,110.63216461,241.48,241.47,21.49088585]
[1731935096973,126.31596627,241.48,241.47,21.49088585]
[1731935097274,106.44145627,241.48,241.47,21.49088585]
[1731935097474,106.56694627,241.48,241.47,21.49088585]
[1731935097785,126.44145627,241.48,241.47,21.49088585]
[1731935097955,126.56694627,241.48,241.47,21.49088585]
[1731935098277,74.26659,241.48,241.47,21.49088585]
[1731935098573,70.0,241.51,241.47,53.4720775]
[1731935098876,0.1,241.6,241.47,53.4720775]
[1731935098877,70.0,241.6,241.49,31.98119165]
[1731935099068,70.0,241.7,241.47,36.08528585]
[1731935099249,31.98119165,241.74,241.47,36.08528585]
[1731935099250,74.1368,241.74,241.67,31.98119165]
[1731935099572,70.0,241.8,241.73,31.98119165]
[1731935099778,70.0,241.8,241.77,31.98119165]
[1731935099948,30.0,241.78,241.77,31.98119165]
[1731935100349,70.0,241.88,241.78,23.776884]
[1731935100576,70.0,241.88,241.85,31.98119165]
[1731935100749,106.11549165,241.88,241.57,20.0]
[1731935100953,70.0,241.78,241.72,31.98119165]
[1731935101153,70.0,241.72,241.68,31.98119165]
[1731935101472,70.0,241.72,241.66,31.98119165]
[1731935101705,4.43897612,241.77,241.7,31.98119165]
[1731935101996,30.0,241.85,241.76,31.98119165]
[1731935102192,70.0,241.84,241.82,31.98119165]
[1731935102586,70.0,241.87,241.82,31.98119165]
[1731935102786,70.0,241.87,241.84,31.98119165]
[1731935103000,70.0,241.87,241.86,31.98119165]
[1731935103975,70.0,241.96,241.87,23.776884]
[1731935104177,70.0,241.99,241.92,31.98119165]
[1731935104388,70.0,241.99,241.94,31.98119165]
[1731935104779,70.0,241.92,241.8,15.4944]
[1731935104982,101.98119165,241.93,241.84,31.98119165]
[1731935105179,70.0,241.96,241.92,31.98119165]
[1731935105426,70.0,241.99,241.94,31.98119165]
[1731935105703,70.0,241.94,241.8,61.95019165]
[1731935106001,70.0,242.0,241.92,31.98119165]
[1731935106203,70.0,242.0,241.8,61.95019165]
[1731935106204,70.0,241.91,241.8,25.8335]
[1731935106507,101.98119165,241.85,241.74,4.1365]
[1731935106801,70.0,241.91,241.84,31.98119165]
[1731935107007,70.0,241.91,241.86,31.98119165]
[1731935107302,70.0,241.91,241.69,4.1375]
[1731935107303,70.0,241.8,241.71,31.98119165]
[1731935107503,70.0,241.73,241.67,31.98119165]
[1731935107800,20.0,241.67,241.54,16.3872]
[1731935108001,0.35098,241.66,241.47,21.49088585]
[1731935108299,52.42584627,241.66,241.51,31.98119165]
[1731935108498,52.42584627,241.66,241.59,31.98119165]
[1731935108499,0.09367462,241.66,241.59,31.98119165]
[1731935108705,0.09367462,241.66,241.47,21.49088585]
[1731935108706,70.0,241.67,241.61,31.98119165]
[1731935108901,70.0,241.58,241.5,10.3515]
[1731935109115,70.0,241.58,241.49,31.98119165]
[1731935109116,70.0,241.55,241.49,31.98119165]
[1731935109408,70.0,241.62,241.54,31.98119165]
[1731935109572,70.0,241.71,241.61,31.98119165]
[1731935109773,70.0,241.78,241.69,31.98119165]
[1731935110005,70.0,241.78,241.72,31.98119165]
[1731935110311,70.0,241.85,241.76,31.98119165]
[1731935110478,31.98119165,241.82,241.67,15.9123]
[1731935110679,70.0,241.75,241.68,23.776884]
[1731935110880,70.0,241.68,241.59,31.98119165]
[1731935111186,74.1366,241.74,241.66,31.98119165]
[1731935111390,70.0,241.67,241.54,14.4903]
[1731935111582,31.98119165,241.62,241.53,16.0576]
[1731935111789,31.98119165,241.63,241.54,31.98119165]
[1731935112099,70.0,241.64,241.56,31.98119165]
[1731935112304,70.0,241.66,241.58,31.98119165]
[1731935112492,70.0,241.66,241.54,4.1401]
[1731935112493,70.0,241.66,241.6,31.98119165]
[1731935112795,70.0,241.67,241.6,31.98119165]
[1731935113003,74.1374,241.7,241.62,31.98119165]
[1731935113209,101.98119165,241.73,241.65,23.776884]
[1731935113381,70.0,241.64,241.52,10.3508]
[1731935113700,0.1,241.72,241.62,31.98119165]
[1731935113701,31.98119165,241.71,241.62,31.98119165]
[1731935114084,70.0,241.69,241.62,31.98119165]
[1731935114279,70.0,241.72,241.64,31.98119165]
[1731935114583,31.98119165,241.8,241.7,31.98119165]
[1731935114790,20.7678,241.93,241.61,0.09367462]
[1731935114791,70.0,241.85,241.77,31.98119165]
[1731935114990,31.98119165,241.86,241.78,23.776884]
[1731935115578,101.98119165,241.88,241.79,31.98119165]
[1731935115784,70.0,241.88,241.82,23.776884]
[1731935116285,70.0,241.88,241.76,31.98119165]
[1731935116286,31.98119165,241.85,241.76,31.98119165]
[1731935116480,31.98119165,241.85,241.76,55.75807565]
[1731935116692,70.0,241.87,241.8,23.776884]
[1731935116900,101.98119165,241.9,241.8,27.912384]
[1731935117084,101.98119165,241.9,241.81,31.98119165]
[1731935117402,31.98119165,241.92,241.84,23.776884]
[1731935118319,31.98119165,241.96,241.87,31.98119165]
[1731935118618,31.98119165,241.98,241.9,23.776884]
[1731935118820,31.98119165,242.02,241.93,31.98119165]
[1731935118993,70.0,242.03,241.96,23.776884]
[1731935119493,31.98119165,242.02,241.94,23.776884]
[1731935119818,31.98119165,242.04,241.95,31.98119165]
[1731935119992,31.98119165,242.04,241.96,23.776884]
[1731935120187,31.98119165,242.02,241.93,42.31449165]
[1731935120389,70.0,242.03,241.95,31.98119165]
[1731935121008,70.0,242.03,241.94,23.776884]
[1731935121009,101.98119165,242.06,241.99,31.98119165]
[1731935121310,101.98119165,242.06,241.97,31.98119165]
[1731935121506,101.98119165,242.06,241.98,23.776884]
[1731935121711,70.0,242.06,241.99,31.98119165]
[1731935122227,101.98119165,242.0,241.89,42.31609165]
[1731935122427,31.98119165,242.04,241.85,31.98119165]
[1731935122428,101.98119165,241.94,241.85,31.98119165]
[1731935122596,31.98119165,241.92,241.85,31.98119165]
[1731935122919,70.0,241.97,241.9,31.98119165]
[1731935123101,70.0,241.94,241.83,4.1349]
[1731935123415,70.0,241.95,241.83,14.4727]
[1731935123803,70.0,241.95,241.87,31.98119165]
[1731935124203,70.0,241.9,241.85,31.98119165]
[1731935124411,70.0,241.9,241.83,42.31899165]
[1731935124622,70.0,241.9,241.75,16.0919]
[1731935124623,70.0,241.83,241.75,15.9919]
[1731935124804,70.0,241.8,241.75,15.9919]
[1731935125121,70.0,241.77,241.75,15.9919]
[1731935125334,70.0,241.83,241.75,47.97309165]
[1731935125522,70.0,241.86,241.79,31.98119165]
[1731935125819,70.0,241.9,241.85,31.98119165]
[1731935126030,70.0,241.97,241.88,31.98119165]
[1731935126527,70.0,241.97,241.9,31.98119165]
[1731935126696,31.98119165,242.02,241.94,31.98119165]
[1731935126892,70.0,242.04,241.96,31.98119165]
[1731935127116,70.0,242.04,241.96,36.11409165]
[1731935127316,31.98119165,242.06,241.98,31.98119165]
[1731935127518,70.0,242.07,241.99,23.776884]
[1731935128026,70.0,242.07,242.0,31.98119165]
[1731935128408,31.98119165,242.04,241.96,46.44629165]
[1731935128612,31.98119165,242.04,241.97,23.776884]
[1731935128921,31.98119165,242.08,242.01,23.776884]
[1731935129119,31.98119165,242.08,242.02,31.98119165]
[1731935129330,101.98119165,242.1,242.02,36.11299165]
[1731935129628,70.0,242.15,242.06,31.98119165]
[1731935129807,70.0,242.15,242.08,31.98119165]
[1731935130002,31.98119165,242.16,242.09,23.776884]
[1731935130209,31.98119165,242.18,242.11,23.776884]
[1731935130509,31.98119165,242.2,242.13,23.776884]
[1731935130712,101.98119165,242.18,242.1,31.98119165]
[1731935131127,70.0,242.15,242.08,31.98119165]
[1731935131431,101.98119165,242.12,242.05,23.776884]
[1731935131804,70.0,242.05,241.97,15.2735]
[1731935132028,31.98119165,242.06,241.9,31.98119165]
[1731935132029,101.98119165,241.99,241.9,31.98119165]
[1731935132524,70.0,242.05,241.98,31.98119165]
[1731935132733,31.98119165,242.07,242.0,31.98119165]
[1731935133030,70.0,242.08,242.0,31.98119165]
[1731935133335,70.0,242.08,241.86,16.488]
[1731935133336,70.0,241.99,241.91,31.98119165]
[1731935133628,20.0,241.94,241.86,16.488]
[1731935133812,70.0,241.89,241.86,16.488]
[1731935134131,70.0,241.92,241.86,16.488]
[1731935134301,70.0,241.84,241.74,14.478]
[1731935134506,101.98119165,241.84,241.74,42.32259165]
[1731935134731,70.0,241.87,241.8,31.98119165]
[1731935134927,70.0,241.9,241.84,31.98119165]
[1731935135237,70.0,241.9,241.76,0.1]
[1731935135238,31.98119165,241.94,241.86,31.98119165]
[1731935135446,70.0,241.92,241.82,31.98119165]
[1731935135605,70.0,241.89,241.8,46.45559165]
[1731935135806,70.0,241.89,241.8,42.31999165]
[1731935136129,36.11409165,241.96,241.87,31.98119165]
[1731935136431,101.98119165,242.0,241.91,31.98119165]
[1731935136627,70.0,241.93,241.88,31.98119165]
[1731935136823,4.1323,242.0,241.82,31.98119165]
[1731935136824,101.98119165,241.9,241.82,31.98119165]
[1731935137014,31.98119165,241.92,241.82,31.98119165]
[1731935137212,70.0,241.93,241.84,31.98119165]
[1731935137527,101.98119165,241.9,241.8,14.4743]
[1731935137710,101.98119165,241.9,241.8,31.98119165]
[1731935138023,70.0,241.9,241.82,31.98119165]
[1731935138529,101.98119165,241.99,241.89,31.98119165]
[1731935138737,101.98119165,241.99,241.91,31.98119165]
[1731935139026,101.98119165,241.99,241.89,31.98119165]
[1731935139027,30.0,241.92,241.89,31.98119165]
[1731935139231,70.0,241.87,241.74,14.4779]
[1731935139542,31.98119165,241.86,241.76,31.98119165]
[1731935140138,30.0,241.92,241.84,31.98119165]
[1731935140341,30.0,241.92,241.9,31.98119165]
[1731935140636,0.2,242.1,241.9,31.98119165]
[1731935140637,4.1314,242.05,241.9,31.98119165]
[1731935140808,4.1314,242.05,241.97,31.98119165]
[1731935141008,4.1314,242.05,241.95,31.98119165]
[1731935141009,31.98119165,242.04,241.95,31.98119165]
[1731935141222,101.98119165,242.06,241.99,31.98119165]
[1731935141445,101.98119165,242.06,241.97,31.98119165]
[1731935141733,106.11169165,242.1,242.01,31.98119165]
[1731935142434,160.0,242.16,242.04,23.776884]
[1731935142435,31.98119165,242.12,242.04,23.776884]
[1731935142647,31.98119165,242.16,242.07,31.98119165]
[1731935142811,160.0,242.2,242.09,31.98119165]
[1731935142812,31.98119165,242.18,242.09,31.98119165]
[1731935143133,101.98119165,242.2,242.11,31.98119165]
[1731935143350,101.98119165,242.2,242.12,4.1301]
[1731935143511,31.98119165,242.2,242.12,4.1301]
[1731935143838,31.98119165,242.2,242.13,23.776884]
[1731935144137,31.98119165,242.22,242.13,55.75807565]
[1731935144714,31.98119165,242.24,242.17,31.98119165]
[1731935144913,31.98119165,242.26,242.17,31.98119165]
[1731935145341,31.98119165,242.26,242.18,23.776884]
[1731935145820,31.98119165,242.26,242.19,31.98119165]
[1731935146833,31.98119165,242.28,242.19,31.98119165]
[1731935147137,31.98119165,242.26,242.18,23.776884]
[1731935147555,70.0,242.43,242.27,0.34465462]
[1731935147736,70.0,242.43,242.37,31.98119165]
[1731935148031,31.98119165,242.38,242.28,31.98119165]
[1731935148242,31.98119165,242.36,242.28,31.98119165]
[1731935148444,31.98119165,242.38,242.28,31.98119165]
[1731935148636,31.98119165,242.38,242.3,31.98119165]
[1731935149147,36.10689165,242.38,242.3,31.98119165]
[1731935149643,36.10689165,242.38,242.23,0.1]
[1731935149644,70.0,242.36,242.31,31.98119165]
[1731935150455,70.0,242.36,242.29,31.98119165]
[1731935150608,106.10569165,242.46,242.35,31.98119165]
[1731935150813,106.10569165,242.46,242.3,0.1]
[1731935150814,70.0,242.37,242.31,31.98119165]
[1731935151015,74.126,242.37,242.31,31.98119165]
[1731935151210,31.98119165,242.42,242.28,0.1]
[1731935151441,4.1246,242.45,242.31,0.21916462]
[1731935151638,4.1246,242.45,242.3,0.1]
[1731935151639,70.0,242.36,242.26,10.3194]
[1731935151823,101.98119165,242.36,242.27,31.98119165]
[1731935152024,70.0,242.31,242.25,31.98119165]
[1731935152425,31.98119165,242.37,242.29,31.98119165]
[1731935152623,70.0,242.38,242.17,4.1293]
[1731935152624,70.0,242.38,242.31,31.98119165]
[1731935152830,70.0,242.42,242.33,31.98119165]
[1731935153036,74.1251,242.42,242.35,31.98119165]
[1731935153229,30.0,242.36,242.33,31.98119165]
[1731935153618,30.0,242.36,242.35,31.98119165]
[1731935153827,74.1251,242.42,242.35,31.98119165]
[1731935154545,70.0,242.39,242.35,31.98119165]
[1731935154737,4.1255,242.4,242.35,31.98119165]
[1731935154930,31.98119165,242.38,242.3,23.776884]
[1731935155242,31.98119165,242.36,242.27,31.98119165]
[1731935155420,31.98119165,242.38,242.29,31.98119165]
[1731935155828,36.10669165,242.4,242.31,31.98119165]
[1731935156027,31.98119165,242.4,242.31,31.98119165]
[1731935156223,31.98119165,242.42,242.33,31.98119165]
[1731935156426,31.98119165,242.42,242.34,23.776884]
[1731935156642,31.98119165,242.4,242.31,31.98119165]
[1731935156849,31.98119165,242.4,242.32,23.776884]
[1731935157542,31.98119165,242.42,242.34,23.776884]
[1731935158225,31.98119165,242.44,242.36,23.776884]
[1731935158455,31.98119165,242.48,242.4,23.776884]
[1731935158660,101.98119165,242.5,242.41,36.10639165]
[1731935158839,31.98119165,242.42,242.35,15.5279]
[1731935159042,70.0,242.43,242.35,15.5279]
[1731935159241,31.98119165,242.42,242.35,15.5279]
[1731935159448,31.98119165,242.44,242.35,51.63519165]
[1731935159630,31.98119165,242.45,242.37,31.98119165]
[1731935160036,31.98119165,242.47,242.4,23.776884]
[1731935160334,4.1238,242.5,242.4,23.776884]
[1731935160335,31.98119165,242.49,242.41,31.98119165]
[1731935160649,31.98119165,242.49,242.42,23.776884]
[1731935160831,31.98119165,242.51,242.44,23.776884]
[1731935161156,36.10479165,242.51,242.44,23.776884]
[1731935161335,36.10479165,242.51,242.43,23.776884]
[1731935161532,70.0,242.52,242.45,31.98119165]
[1731935162333,31.98119165,242.53,242.46,23.776884]
[1731935162630,36.10409165,242.55,242.47,31.98119165]
[1731935163030,31.98119165,242.53,242.45,31.98119165]
[1731935163253,31.98119165,242.53,242.46,23.776884]
[1731935163461,36.10409165,242.55,242.47,31.98119165]
[1731935163756,31.98119165,242.49,242.39,31.98119165]
[1731935163946,31.98119165,242.45,242.37,31.98119165]
[1731935164137,70.0,242.48,242.35,15.5279]
[1731935164138,30.48119165,242.41,242.35,15.5279]
[1731935164341,31.98119165,242.39,242.29,31.98119165]
[1731935164542,31.98119165,242.39,242.28,6.2836]
[1731935164543,31.98119165,242.39,242.31,31.98119165]
[1731935164870,31.98119165,242.35,242.27,31.98119165]
[1731935165037,31.98119165,242.35,242.26,15.8472]
[1731935165038,31.98119165,242.39,242.31,31.98119165]
[1731935165930,31.98119165,242.35,242.27,31.98119165]
[1731935166135,31.98119165,242.29,242.2,31.98119165]
[1731935166350,31.98119165,242.31,242.23,31.98119165]
[1731935166537,101.98119165,242.31,242.21,31.98119165]
[1731935166734,31.98119165,242.31,242.17,0.1]
[1731935166928,30.0,242.34,242.3,31.98119165]
[1731935167566,36.10669165,242.4,242.3,31.98119165]
[1731935167740,36.10619165,242.42,242.32,31.98119165]
[1731935167938,31.98119165,242.44,242.37,23.776884]
[1731935168135,70.0,242.49,242.38,31.98119165]
[1731935168136,31.98119165,242.46,242.38,31.98119165]
[1731935168345,31.98119165,242.4,242.34,15.0332]
[1731935168538,31.98119165,242.44,242.37,23.776884]
[1731935168754,36.10559165,242.46,242.37,23.776884]
[1731935168950,31.98119165,242.44,242.37,23.776884]
[1731935169259,36.10559165,242.46,242.38,31.98119165]
[1731935169458,70.0,242.41,242.34,15.0332]
[1731935169639,31.98119165,242.36,242.26,31.98119165]
[1731935169840,31.98119165,242.4,242.14,15.6057]
[1731935169841,70.0,242.31,242.14,15.6057]
[1731935170042,31.98119165,242.28,242.2,31.98119165]
[1731935170372,31.98119165,242.3,242.2,31.98119165]
[1731935170537,31.98119165,242.28,242.2,31.98119165]
[1731935171044,31.98119165,242.26,242.18,31.98119165]
[1731935171543,31.98119165,242.2,242.14,15.6057]
[1731935171849,70.0,242.23,242.05,0.1]
[1731935171850,31.98119165,242.16,242.05,15.2316]
[1731935172047,31.98119165,242.12,242.05,15.2316]
[1731935172253,31.98119165,242.1,242.02,31.98119165]
[1731935172663,31.98119165,242.1,242.0,36.11329165]
[1731935173054,101.98119165,242.08,242.0,31.98119165]
[1731935173249,101.98119165,242.08,241.99,10.331]
[1731935173449,101.98119165,242.08,241.98,31.98119165]
[1731935173450,31.98119165,242.06,241.98,31.98119165]
[1731935173644,4.1303,242.11,241.69,12.36847265]
[1731935173645,31.98119165,242.0,241.92,31.98119165]
[1731935173838,31.98119165,241.98,241.88,31.98119165]
[1731935174056,31.98119165,241.96,241.88,31.98119165]
[1731935174245,31.98119165,241.94,241.85,31.98119165]
[1731935174446,70.0,241.97,241.81,31.98119165]
[1731935174447,70.0,241.9,241.81,31.98119165]
[1731935174652,20.0,241.93,241.74,42.32259165]
[1731935174653,70.0,241.87,241.74,42.32259165]
[1731935174854,31.98119165,241.8,241.74,10.3414]
[1731935175151,20.0,241.86,241.67,10.3444]
[1731935175152,31.98119165,241.76,241.67,10.3444]
[1731935175460,31.98119165,241.78,241.68,31.98119165]
[1731935175643,31.98119165,241.82,241.74,31.98119165]
[1731935175972,31.98119165,241.83,241.71,0.1]
[1731935176176,74.1347,241.86,241.73,31.98119165]
[1731935176342,70.0,241.8,241.67,10.3444]
[1731935176757,4.1347,241.86,241.67,10.4444]
[1731935176956,4.1351,241.83,241.69,4.1375]
[1731935177160,70.0,241.81,241.69,14.4813]
[1731935177361,31.98119165,241.81,241.73,31.98119165]
[1731935177990,31.98119165,241.85,241.77,31.98119165]
[1731935178354,31.98119165,241.87,241.78,23.776884]
[1731935178585,61.98119165,241.89,241.8,23.902374]